fUSD/lending_fUSD_20251023
["ID","MTS","AMOUNT","RATE_DAILY","PERIOD"]
[392159546,1761221441545,-14499.044073,0.000447,3]
[392159547,1761221441554,-500.0,0.00044709,7]
[392159548,1761221441564,-500.0,0.00044709,30]
[392159549,1761221441573,-500.0,0.00044709,120]
[392159550,1761221441583,-2365.0,0.0004471,7]
[392159551,1761221441592,-500.0,0.0004471,120]
[392159552,1761221441604,-500.0,0.0004471,120]
[392159553,1761221441613,-500.0,0.0004471,120]
[392159554,1761221441623,-500.0,0.0004471,120]
[392159555,1761221441632,-584.05,0.0004471,120]
[392159556,1761221441642,-500.0,0.0004471,120]
[392159557,1761221441651,-500.0,0.0004471,120]
[392159558,1761221441661,-500.0,0.0004471,120]
[392159559,1761221441670,-500.0,0.0004471,120]
[392159560,1761221441680,-500.0,0.0004471,120]
[392159561,1761221441689,-500.0,0.0004471,120]
[392159562,1761221441699,-500.0,0.0004471,120]
[392159563,1761221441708,-500.0,0.0004471,120]
[392159564,1761221441717,-500.0,0.0004471,120]
[392159565,1761221441727,-500.0,0.0004471,120]
[392159566,1761221441736,-500.0,0.0004471,120]
[392159567,1761221441746,-555.34,0.0004471,120]
[392159568,1761221441755,-453.59798832,0.0004471,120]
[392159569,1761221441765,-500.0,0.0004471,120]
[392159570,1761221441775,-500.0,0.0004471,120]
[392159571,1761221441785,-500.0,0.0004471,120]
[392159572,1761221441795,-2171.24244,0.0004471,24]
[392159573,1761221441804,-21926.2758247,0.0004471,3]
[392159574,1761221441813,-19332.058764,0.0004471,3]
[392159575,1761221441823,-1215.45808329,0.00044714,15]
[392159576,1761221441832,-364.96785777,0.00044715,14]
[392159577,1761221441841,-500.0,0.0004472,120]
[392159578,1761221441851,-500.0,0.0004472,120]
[392159579,1761221441860,-500.0,0.0004472,30]
[392159580,1761221441870,-500.0,0.0004472,120]
[392159581,1761221441879,-500.0,0.0004472,120]
[392159582,1761221441890,-500.0,0.0004472,120]
[392159583,1761221441899,-500.0,0.0004472,120]
[392159584,1761221441909,-500.0,0.0004472,120]
[392159585,1761221441918,-500.0,0.0004472,120]
[392159586,1761221441927,-500.0,0.0004472,120]
[392159587,1761221441936,-500.0,0.0004472,120]
[392159588,1761221441946,-500.0,0.0004472,120]
[392159589,1761221441956,-500.0,0.0004472,120]
[392159590,1761221441966,-631.84,0.0004472,120]
[392159591,1761221441975,-623.38,0.0004472,120]
[392159592,1761221441984,-500.0,0.0004472,120]
[392159593,1761221441994,-500.0,0.0004472,120]
[392159594,1761221442003,-500.0,0.0004472,60]
[392159595,1761221442014,-500.0,0.0004472,2]
[392159596,1761221442024,-500.0,0.0004472,120]
[392159597,1761221442034,-500.0,0.0004472,120]
[392159598,1761221442043,-500.0,0.0004472,120]
[392159599,1761221442053,-500.0,0.0004472,120]
[392159600,1761221442063,-500.0,0.0004472,120]
[392159601,1761221442075,-500.0,0.0004472,120]
[392159602,1761221442085,-500.0,0.0004472,120]
[392159603,1761221442094,-501.87,0.0004472,120]
[392159604,1761221442104,-500.0,0.0004472,120]
[392159605,1761221442116,-500.0,0.0004472,120]
[392159606,1761221442126,-500.19,0.0004472,120]
[392159607,1761221442135,-500.0,0.0004472,120]
[392159608,1761221442145,-537.88,0.0004472,120]
[392159609,1761221442155,-500.0,0.0004472,120]
[392159610,1761221442164,-548.57,0.0004472,120]
[392159611,1761221442174,-500.0,0.0004472,120]
[392159612,1761221442182,-500.0,0.0004472,120]
[392159613,1761221442191,-500.0,0.0004472,120]
[392159614,1761221442200,-1900.23,0.0004472,120]
[392159615,1761221442210,-502.7,0.0004472,120]
[392159616,1761221442219,-500.0,0.0004472,120]
[392159617,1761221442228,-500.0,0.0004472,120]
[392159618,1761221442237,-500.0,0.0004472,120]
[392159619,1761221442246,-1180.75,0.0004472,120]
[392159620,1761221442256,-500.0,0.0004472,120]
[392159621,1761221442265,-500.0,0.0004472,120]
[392159622,1761221442276,-500.0,0.0004472,120]
[392159623,1761221442286,-500.0,0.0004472,120]
[392159624,1761221442296,-500.0,0.0004472,120]
[392159625,1761221442305,-535.29690419,0.0004472,120]
[392159626,1761221442315,-500.0,0.0004472,120]
[392159627,1761221442325,-500.0,0.0004472,120]
[392159628,1761221442334,-500.0,0.0004472,120]
[392159629,1761221442343,-500.0,0.0004472,120]
[392159630,1761221442352,-500.0,0.0004472,120]
[392159631,1761221442362,-500.0,0.0004472,120]
[392159632,1761221442371,-306.49,0.0004472,30]
[392159633,1761221442381,-500.0,0.0004472,120]
[392159634,1761221442390,-666.49,0.0004472,120]
[392159635,1761221442400,-500.0,0.0004472,120]
[392159636,1761221442409,-500.0,0.0004472,2]
[392159637,1761221442418,-1605.88,0.0004472,30]
[392159638,1761221442429,-500.0,0.0004472,120]
[392159639,1761221442438,-500.0,0.0004472,120]
[392159640,1761221442448,-500.0,0.0004472,120]
[392159641,1761221442458,-500.0,0.0004472,120]
[392159642,1761221442468,-500.0,0.0004472,120]
[392159643,1761221442477,-1043.4,0.0004472,120]
[392159644,1761221442487,-500.0,0.0004472,12]
[392159645,1761221442497,-500.0,0.0004472,120]
[392159646,1761221442507,-500.0,0.0004472,120]
[392159647,1761221442517,-500.0,0.0004472,120]
[392159648,1761221442528,-500.0,0.0004472,120]
[392159649,1761221442537,-500.0,0.0004472,120]
[392159650,1761221442548,-500.0,0.0004472,120]
[392159651,1761221442558,-1546.56,0.0004472,120]
[392159652,1761221442567,-500.0,0.0004472,120]
[392159653,1761221442576,-500.0,0.0004472,120]
[392159654,1761221442586,-500.0,0.0004472,120]
[392159655,1761221442595,-500.0,0.0004472,120]
[392159656,1761221442605,-500.0,0.0004472,120]
[392159657,1761221442614,-492.05151546,0.0004472,120]
[392159659,1761221442624,-500.0,0.0004472,120]
[392159661,1761221442632,-500.0,0.0004472,120]
[392159663,1761221442641,-4628.17,0.0004472,120]
[392159664,1761221442651,-795.09,0.0004472,120]
[392159665,1761221442660,-868.01,0.0004472,120]
[392159666,1761221442669,-535.23,0.0004472,120]
[392159667,1761221442678,-500.0,0.0004472,120]
[392159668,1761221442687,-500.0,0.00044748,10]
[392159669,1761221442697,-1258.25204925,0.00044752,15]
[392159670,1761221442706,-4385.25516494,0.0004476,3]
[392159671,1761221442715,-245.0,0.0004477,7]
[392159672,1761221442725,-752.13807615,0.00044772,120]
[392159673,1761221442734,-245.0,0.00044794,2]
[392159674,1761221442743,-4833.01469101,0.00044798,3]
[392159675,1761221442753,-1215.45808329,0.00044807,15]
[392159676,1761221442763,-500.0,0.00044826,120]
[392159677,1761221442774,-500.0,0.00044826,120]
[392159678,1761221442784,-500.0,0.00044826,120]
[392159680,1761221442793,-500.0,0.00044826,120]
[392159682,1761221442802,-500.0,0.00044826,120]
[392159684,1761221442811,-500.0,0.00044826,120]
[392159685,1761221442821,-1258.25204925,0.00044826,15]
[392159686,1761221442831,-4385.25516494,0.0004488,3]
[392159687,1761221442841,-4833.01469101,0.00044889,3]
[392159688,1761221442850,-17541.0206598,0.0004489,3]
[392159689,1761221442860,-53163.1616011,0.0004489,3]
[392159690,1761221442869,-716.82464585,0.00044894,2]
[392159691,1761221442879,-4833.01469101,0.00044898,3]
[392159692,1761221442889,-1983.9083,0.00044899,2]
[392159693,1761221442898,-191.47930806,0.00044899,17]
[392159694,1761221442908,-107592.49,0.000449,120]
[392159695,1761221442918,-385.4666775,0.000449,120]
[392159696,1761221442927,-323.31516281,0.000449,2]
[392159697,1761221442937,-344.44936714,0.000449,2]
[392159698,1761221442946,-200.90864578,0.000449,9]
[392159699,1761221442955,-1215.45808329,0.000449,15]
[392159700,1761221442965,-385.46667748,0.0004491,120]
[392159701,1761221442975,-385.46667748,0.0004492,120]
[392159702,1761221442985,-156.87498904,0.0004492,28]
[392159703,1761221442994,-197.79,0.0004492,120]
[392159704,1761221443003,-323.31516279,0.00044925,2]
[392159705,1761221443012,-344.44936713,0.00044925,2]
[392159706,1761221443021,-168.96665713,0.00044925,15]
[392159707,1761221443133,-191.47930806,0.0004493,17]
[392159708,1761221443144,-4833.01469101,0.0004493,3]
[392159709,1761221443157,-323.31516279,0.0004495,2]
[392159710,1761221443167,-344.44936713,0.0004495,2]
[392159711,1761221443177,-1101.41690574,0.00044956,120]
[392159712,1761221443187,-1101.41690574,0.00044958,120]
[392159713,1761221443196,-1101.41690575,0.00044958,120]
[392159714,1761221443207,-2171.24245,0.0004496,25]
[392159715,1761221443216,-214.75138165,0.00044961,120]
[392159716,1761221443226,-214.75138165,0.00044962,120]
[392159717,1761221443236,-214.75138165,0.00044962,120]
[392159718,1761221443246,-4833.01469101,0.00044963,3]
[392159719,1761221443255,-9666.02938202,0.00044964,3]
[392159720,1761221443264,-1101.41690575,0.00044966,120]
[392159721,1761221443275,-1101.41690575,0.00044967,120]
[392159722,1761221443285,-33831.1028371,0.00044969,3]
[392159723,1761221443295,-996.78518624,0.00044969,120]
[392159724,1761221443305,-9666.02938202,0.0004497,3]
[392159725,1761221443314,-1101.41690575,0.00044974,120]
[392159726,1761221443324,-9666.02938202,0.00044974,3]
[392159727,1761221443335,-1101.41690574,0.00044974,120]
[392159728,1761221443346,-1101.41690575,0.00044975,120]
[392159729,1761221443359,-4833.01469101,0.00044978,3]
[392159730,1761221443368,-1101.41690575,0.00044979,120]
[392159731,1761221443379,-4833.01469101,0.00044979,3]
[392159732,1761221443390,-215.26,0.0004498,120]
[392159733,1761221443399,-214.75138165,0.00044982,120]
[392159734,1761221443409,-214.75138165,0.00044983,120]
[392159735,1761221443418,-212.98,0.00044983,120]
[392159737,1761221443427,-500.0,0.00044983,120]
[392159738,1761221443436,-184.2059386,0.00044983,120]
[392159739,1761221443445,-2990.35555873,0.00044983,120]
[392159740,1761221443455,-24165.0734551,0.00044984,3]
[392159741,1761221443464,-500.0,0.00044984,120]
[392159742,1761221443473,-500.0,0.00044984,120]
[392159743,1761221443483,-500.0,0.00044984,120]
[392159744,1761221443492,-500.0,0.00044984,120]
[392159745,1761221443502,-584.05,0.00044984,120]
[392159746,1761221443511,-500.0,0.00044984,120]
[392159747,1761221443522,-500.0,0.00044984,120]
[392159748,1761221443531,-500.0,0.00044984,120]
[392159749,1761221443541,-500.0,0.00044984,120]
[392159750,1761221443551,-500.0,0.00044984,120]
[392159751,1761221443561,-500.0,0.00044984,120]
[392159752,1761221443570,-500.0,0.00044984,120]
[392159753,1761221443580,-500.0,0.00044984,120]
[392159754,1761221443589,-500.0,0.00044984,120]
[392159755,1761221443599,-500.0,0.00044984,120]
[392159756,1761221443609,-500.0,0.00044984,120]
[392159757,1761221443618,-555.34,0.00044984,120]
[392159758,1761221443628,-500.0,0.00044984,120]
[392159759,1761221443638,-500.0,0.00044984,120]
[392159760,1761221443647,-500.0,0.00044984,120]
[392159761,1761221443657,-6000.0,0.00044986,120]
[392159762,1761221443666,-150.0,0.00044986,30]
[392159763,1761221443676,-150.0,0.00044986,30]
[392159764,1761221443686,-150.0,0.00044986,30]
[392159765,1761221443695,-150.0,0.00044986,30]
[392159766,1761221443704,-150.0,0.00044986,30]
[392159767,1761221443714,-150.0,0.00044986,30]
[392159768,1761221443723,-150.0,0.00044986,30]
[392159769,1761221443733,-996.78518624,0.00044987,120]
[392159770,1761221443743,-1101.41690574,0.00044987,120]
[392159771,1761221443752,-500.0,0.00044988,7]
[392159772,1761221443762,-6915.9715985,0.00044988,2]
[392159773,1761221443772,-500.0,0.00044988,30]
[392159774,1761221443781,-500.0,0.00044988,120]
[392159775,1761221443791,-214.75138165,0.00044989,120]
[392159776,1761221443801,-9666.02938202,0.00044989,3]
[392159777,1761221443810,-500.0,0.00044989,120]
[392159778,1761221443820,-1101.41690575,0.00044989,120]
[392159779,1761221443829,-1101.41690574,0.0004499,120]
[392159780,1761221443838,-1101.41690574,0.0004499,120]
[392159781,1761221443848,-996.78518624,0.00044991,120]
[392159782,1761221443857,-500.0,0.00044992,7]
[392159783,1761221443866,-152.84304592,0.00044992,30]
[392159784,1761221443876,-500.0,0.00044992,120]
[392159785,1761221443886,-1101.41690575,0.00044992,120]
[392159786,1761221443896,-214.75138165,0.00044992,120]
[392159787,1761221443905,-5800.0,0.00044993,14]
[392159788,1761221443915,-2990.35555873,0.00044994,120]
[392159789,1761221443925,-500.0,0.00044994,120]
[392159790,1761221443934,-500.0,0.00044994,120]
[392159791,1761221443944,-500.0,0.00044994,30]
[392159792,1761221443953,-500.0,0.00044994,120]
[392159793,1761221443963,-500.0,0.00044994,120]
[392159794,1761221443972,-500.0,0.00044994,120]
[392159795,1761221443981,-500.0,0.00044994,120]
[392159796,1761221443991,-500.0,0.00044994,120]
[392159797,1761221444000,-500.0,0.00044994,120]
[392159798,1761221444010,-500.0,0.00044994,120]
[392159799,1761221444021,-500.0,0.00044994,120]
[392159800,1761221444031,-500.0,0.00044994,120]
[392159801,1761221444042,-500.0,0.00044994,120]
[392159802,1761221444052,-631.84,0.00044994,120]
[392159803,1761221444062,-623.38,0.00044994,120]
[392159804,1761221444071,-500.0,0.00044994,120]
[392159805,1761221444081,-500.0,0.00044994,120]
[392159806,1761221444092,-500.0,0.00044994,60]
[392159807,1761221444101,-500.0,0.00044994,2]
[392159808,1761221444111,-500.0,0.00044994,120]
[392159809,1761221444121,-500.0,0.00044994,120]
[392159810,1761221444131,-500.0,0.00044994,120]
[392159811,1761221444140,-500.0,0.00044994,120]
[392159812,1761221444149,-500.0,0.00044994,120]
[392159813,1761221444159,-500.0,0.00044994,120]
[392159814,1761221444169,-500.0,0.00044994,120]
[392159815,1761221444179,-501.87,0.00044994,120]
[392159816,1761221444189,-500.0,0.00044994,120]
[392159817,1761221444199,-500.0,0.00044994,120]
[392159818,1761221444209,-500.19,0.00044994,120]
[392159819,1761221444219,-500.0,0.00044994,120]
[392159820,1761221444229,-537.88,0.00044994,120]
[392159821,1761221444238,-500.0,0.00044994,120]
[392159822,1761221444248,-548.57,0.00044994,120]
[392159823,1761221444257,-500.0,0.00044994,120]
[392159824,1761221444267,-500.0,0.00044994,120]
[392159825,1761221444277,-500.0,0.00044994,120]
[392159826,1761221444286,-1900.23,0.00044994,120]
[392159827,1761221444295,-502.7,0.00044994,120]
[392159828,1761221444305,-500.0,0.00044994,120]
[392159829,1761221444315,-500.0,0.00044994,120]
[392159830,1761221444325,-620.14031132,0.00044994,120]
[392159831,1761221444335,-1180.75,0.00044994,120]
[392159832,1761221444344,-500.0,0.00044994,120]
[392159833,1761221444354,-500.0,0.00044994,120]
[392159834,1761221444364,-500.0,0.00044994,120]
[392159835,1761221444375,-500.0,0.00044994,120]
[392159836,1761221444384,-263.62530928,0.00044994,120]
[392159837,1761221444395,-500.0,0.00044994,120]
[392159838,1761221444407,-333.3335836,0.00044994,120]
[392159839,1761221444418,-500.0,0.00044994,120]
[392159840,1761221444429,-500.0,0.00044994,120]
[392159841,1761221444439,-250.3690674,0.00044994,120]
[392159842,1761221444457,-500.0,0.00044994,120]
[392159843,1761221444467,-306.5,0.00044994,30]
[392159844,1761221444476,-199.91919044,0.00044994,120]
[392159845,1761221444486,-666.49,0.00044994,120]
[392159846,1761221444497,-500.0,0.00044994,120]
[392159847,1761221444507,-500.0,0.00044994,2]
[392159848,1761221444519,-1605.88,0.00044994,30]
[392159849,1761221444529,-500.0,0.00044994,120]
[392159850,1761221444539,-572.64392325,0.00044994,120]
[392159851,1761221444548,-500.0,0.00044994,120]
[392159852,1761221444558,-500.0,0.00044994,120]
[392159853,1761221444568,-501.5,0.00044994,120]
[392159854,1761221444577,-1043.4,0.00044994,120]
[392159855,1761221444586,-500.0,0.00044994,12]
[392159856,1761221444595,-500.0,0.00044994,120]
[392159857,1761221444605,-500.0,0.00044994,120]
[392159858,1761221444614,-500.0,0.00044994,120]
[392159859,1761221444623,-500.0,0.00044994,120]
[392159860,1761221444632,-500.0,0.00044994,120]
[392159861,1761221444642,-500.0,0.00044994,120]
[392159862,1761221444651,-1546.56,0.00044994,120]
[392159863,1761221444661,-500.0,0.00044994,120]
[392159864,1761221444671,-500.0,0.00044994,120]
[392159865,1761221444680,-500.0,0.00044994,120]
[392159866,1761221444689,-500.0,0.00044994,120]
[392159867,1761221444698,-500.0,0.00044994,120]
[392159868,1761221444707,-182.48,0.00044994,14]
[392159869,1761221444718,-500.0,0.00044994,120]
[392159870,1761221444727,-500.0,0.00044994,120]
[392159871,1761221444736,-4628.17,0.00044994,120]
[392159872,1761221444746,-795.09,0.00044994,120]
[392159873,1761221444755,-868.01,0.00044994,120]
[392159874,1761221444768,-535.23,0.00044994,120]
[392159875,1761221444777,-500.0,0.00044994,120]
[392159876,1761221444788,-1101.41690574,0.00044995,120]
[392159877,1761221444798,-500.0,0.00044995,120]
[392159878,1761221444808,-500.0,0.00044995,120]
[392159879,1761221444818,-504.21,0.00044995,120]
[392159880,1761221444829,-996.78518624,0.00044995,120]
[392159881,1761221444838,-214.75138165,0.00044996,120]
[392159882,1761221444847,-1101.41690574,0.00044996,120]
[392159883,1761221444857,-579.70992527,0.00044998,2]
[392159884,1761221444867,-285.29778281,0.00044998,120]
[392159885,1761221444877,-451.17245557,0.00044998,7]
[392159886,1761221444887,-999.0,0.00044998,120]
[392159887,1761221444898,-1177.65810365,0.00044999,60]
[392159888,1761221444907,-1177.65810365,0.00044999,60]
[392159889,1761221444917,-1177.65810365,0.00044999,60]
[392159890,1761221444928,-78070.5097771,0.00044999,2]
[392159891,1761221444938,-1497.54823266,0.00044999,14]
[392159892,1761221444950,-300.0,0.00044999,120]
[392159893,1761221444963,-264.28316117,0.00044999,120]
[392159894,1761221444973,-500.0,0.00044999,120]
[392159895,1761221444983,-500.0,0.00044999,120]
[392159896,1761221444992,-518.5,0.00044999,120]
[392159897,1761221445001,-500.0,0.00044999,120]
[392159898,1761221445011,-537.6845,0.00044999,120]
[392159899,1761221445021,-500.0,0.00044999,120]
[392159900,1761221445031,-557.5788265,0.00044999,120]
[392159901,1761221445041,-500.0,0.00044999,120]
[392159902,1761221445050,-500.0,0.00044999,120]
[392159903,1761221445060,-250.0,0.00044999,120]
[392159904,1761221445069,-414.0,0.00044999,120]
[392159905,1761221445083,-500.0,0.00044999,120]
[392159906,1761221445092,-500.0,0.00044999,120]
[392159907,1761221445102,-250.0,0.00044999,120]
[392159908,1761221445111,-500.0,0.00044999,120]
[392159909,1761221445121,-429.318,0.00044999,120]
[392159910,1761221445131,-500.0,0.00044999,120]
[392159911,1761221445140,-500.0,0.00044999,120]
[392159912,1761221445150,-250.0,0.00044999,120]
[392159913,1761221445163,-500.0,0.00044999,120]
[392159914,1761221445173,-445.202766,0.00044999,120]
[392159915,1761221445182,-500.0,0.00044999,120]
[392159916,1761221445191,-500.0,0.00044999,120]
[392159917,1761221445201,-250.0,0.00044999,120]
[392159918,1761221445211,-500.0,0.00044999,120]
[392159919,1761221445220,-461.67526834,0.00044999,120]
[392159920,1761221445230,-500.0,0.00044999,120]
[392159921,1761221445239,-500.0,0.00044999,120]
[392159922,1761221445248,-250.0,0.00044999,120]
[392159923,1761221445258,-500.0,0.00044999,120]
[392159924,1761221445268,-500.0,0.00044999,120]
[392159925,1761221445277,-478.75725327,0.00044999,120]
[392159926,1761221445288,-500.0,0.00044999,120]
[392159927,1761221445298,-500.0,0.00044999,120]
[392159928,1761221445310,-250.0,0.00044999,120]
[392159929,1761221445320,-500.0,0.00044999,120]
[392159930,1761221445330,-500.0,0.00044999,120]
[392159931,1761221445339,-496.47127164,0.00044999,120]
[392159932,1761221445349,-500.0,0.00044999,120]
[392159933,1761221445359,-500.0,0.00044999,120]
[392159934,1761221445369,-500.0,0.00044999,120]
[392159935,1761221445477,-500.0,0.00044999,120]
[392159936,1761221445487,-514.84070869,0.00044999,120]
[392159937,1761221445497,-500.0,0.00044999,120]
[392159938,1761221445506,-500.0,0.00044999,120]
[392159939,1761221445516,-500.0,0.00044999,120]
[392159940,1761221445526,-533.88981491,0.00044999,120]
[392159943,1761221445536,-500.0,0.00044999,120]
[392159944,1761221445545,-500.0,0.00044999,120]
[392159945,1761221445554,-500.0,0.00044999,120]
[392159946,1761221445564,-553.64373807,0.00044999,120]
[392159947,1761221445574,-500.0,0.00044999,120]
[392159950,1761221445584,-500.0,0.00044999,120]
[392159951,1761221445593,-500.0,0.00044999,120]
[392159952,1761221445603,-600.0,0.00044999,120]
[392159953,1761221445612,-500.0,0.00044999,120]
[392159954,1761221445621,-500.0,0.00044999,120]
[392159955,1761221445631,-574.12855637,0.00044999,120]
[392159956,1761221445640,-600.0,0.00044999,120]
[392159957,1761221445649,-500.0,0.00044999,120]
[392159958,1761221445659,-595.37131296,0.00044999,120]
[392159959,1761221445670,-500.0,0.00044999,120]
[392159960,1761221445682,-250.0,0.00044999,120]
[392159961,1761221445691,-500.0,0.00044999,120]
[392159962,1761221445701,-600.0,0.00044999,120]
[392159963,1761221445711,-617.40005154,0.00044999,120]
[392159964,1761221445721,-500.0,0.00044999,120]
[392159965,1761221445730,-250.0,0.00044999,120]
[392159966,1761221445741,-500.0,0.00044999,120]
[392159967,1761221445751,-640.24385345,0.00044999,120]
[392159968,1761221445761,-600.0,0.00044999,120]
[392159969,1761221445770,-500.0,0.00044999,120]
[392159970,1761221445780,-250.0,0.00044999,120]
[392159971,1761221445791,-500.0,0.00044999,120]
[392159972,1761221445801,-663.93287602,0.00044999,120]
[392159973,1761221445811,-600.0,0.00044999,120]
[392159974,1761221445820,-500.0,0.00044999,120]
[392159975,1761221445829,-250.0,0.00044999,120]
[392159976,1761221445839,-250.0,0.00044999,120]
[392159977,1761221445849,-500.0,0.00044999,120]
[392159978,1761221445858,-688.49839244,0.00044999,120]
[392159979,1761221445868,-600.0,0.00044999,120]
[392159980,1761221445878,-250.0,0.00044999,120]
[392159981,1761221445888,-500.0,0.00044999,120]
[392159982,1761221445898,-250.0,0.00044999,120]
[392159983,1761221445908,-500.0,0.00044999,120]
[392159984,1761221445918,-713.97283296,0.00044999,120]
[392159985,1761221445928,-600.0,0.00044999,120]
[392159986,1761221445938,-250.0,0.00044999,120]
[392159987,1761221445947,-250.0,0.00044999,120]
[392159988,1761221445958,-740.38982778,0.00044999,120]
[392159989,1761221445967,-500.0,0.00044999,120]
[392159990,1761221445977,-600.0,0.00044999,120]
[392159991,1761221445987,-250.0,0.00044999,120]
[392159992,1761221445997,-767.7842514,0.00044999,120]
[392159993,1761221446007,-600.0,0.00044999,120]
[392159994,1761221446017,-500.0,0.00044999,120]
[392159995,1761221446027,-250.0,0.00044999,120]
[392159996,1761221446037,-796.19226871,0.00044999,120]
[392159997,1761221446047,-600.0,0.00044999,120]
[392159998,1761221446056,-500.0,0.00044999,120]
[392159999,1761221446067,-250.0,0.00044999,120]
[392160000,1761221446081,-825.65138265,0.00044999,120]
[392160001,1761221446092,-500.0,0.00044999,120]
[392160002,1761221446101,-250.0,0.00044999,120]
[392160003,1761221446111,-250.0,0.00044999,120]
[392160004,1761221446120,-250.0,0.00044999,120]
[392160005,1761221446130,-250.0,0.00044999,120]
[392160006,1761221446139,-500.0,0.00044999,120]
[392160007,1761221446148,-500.0,0.00044999,120]
[392160008,1761221446158,-250.0,0.00044999,120]
[392160009,1761221446167,-500.0,0.00044999,120]
[392160010,1761221446176,-396.74261158,0.00044999,120]
[392160011,1761221446186,-500.0,0.00044999,120]
[392160012,1761221446195,-500.0,0.00044999,120]
[392160013,1761221446204,-500.0,0.00044999,120]
[392160014,1761221446214,-500.0,0.00044999,120]
[392160015,1761221446224,-500.0,0.00044999,120]
[392160016,1761221446233,-500.0,0.00044999,120]
[392160017,1761221446242,-500.0,0.00044999,120]
[392160018,1761221446251,-500.0,0.00044999,120]
[392160019,1761221446260,-500.0,0.00044999,120]
[392160020,1761221446269,-2990.35555873,0.00044999,120]
[392160021,1761221446279,-39695.35860035,0.00045,18]
[392160022,1761221446289,-2990.35555873,0.00045,120]
[392160023,1761221446298,-914994.46044097,0.00045,120]
[392160024,1761221446308,-695043.52716465,0.00045,120]
[392160026,1761221446444,-17.56294516,0.00045,120]
[392160027,1761221446456,-472.86339972,0.00045,120]
[392160028,1761221446467,-8556.83530138,0.00045,120]
[392160029,1761221446479,-8947.21879473,0.00045,120]
[392160030,1761221446490,-8943.78386462,0.00045,120]
[392160031,1761221446502,-9077.54866152,0.00045,120]
[392160032,1761221446513,-8943.84023489,0.00045,120]
[392160033,1761221446659,-550.18,0.00043898,120]
[392160034,1761221446669,-26661.33135,0.00045,120]
[392160035,1761221446718,-86.85304674,0.00045,120]
[392160036,1761221446730,-233248.63523659,0.00045,120]
[392160037,1761221446741,-861757.97802038,0.00045,120]
[392160038,1761221446754,-350.57439398,0.00045,120]
[392160039,1761221446891,-1258.25204925,0.000449,15]
[392160040,1761221446900,-29833.79995073,0.00045,120]
[392160041,1761221446912,-5643.46846765,0.00045,120]
[392160042,1761221446923,-703.4950002,0.00045,120]
[392160043,1761221446935,-298.06249655,0.00045,120]
[392160044,1761221446947,-5231.24,0.00045,120]
[392160047,1761221497650,168.0,0.00040531,2]
[392160136,1761222119330,2370000.0,0.00036508,30]
[392160153,1761222204054,-318.8082311,0.00024921,2]
[392160154,1761222204080,-500.0,0.00024921,2]
[392160155,1761222204105,-500.0,0.00024921,2]
[392160156,1761222204129,-436.35666302,0.00024921,2]
[392160157,1761222204154,-1200.0,0.00024921,2]
[392160158,1761222204178,-150.0,0.00024921,2]
[392160159,1761222204203,-300.0,0.00024921,2]
[392160160,1761222204227,-9102.06510588,0.00024922,2]
[392160161,1761222214928,-37899.98335052,0.00024922,2]
[392160162,1761222214952,-12100.01664948,0.00024922,2]
[392160163,1761222226133,-42717.10997922,0.00024922,2]